[Event "Rapid Shavuot-A 2023"]
[Site "Ramat Gan"]
[Date "2023.05.25"]
[Round "4.1"]
[White "Mesropov, Konstantin"]
[Black "Aizenberg, Benny"]
[Result "0-1"]
[ECO "A88"]
[WhiteElo "2437"]
[BlackElo "2403"]
[Annotator "TA"]
[PlyCount "64"]
[EventDate "2023.05.19"]
[EventType "swiss"]
[EventCountry "ISR"]
[SourceTitle "playchess.com"]
[Source "ChessBase"]
[SourceQuality "1"]
[TimeControl "900+5"]

{[%evp 17,64,13,37,36,22,29,32,20,25,28,28,-77,-19,-33,-28,-31,-31,-66,-70,-58,-61,-80,-40,-58,-9,-9,-8,-14,-15,-575,-619,-601,-592,-1136,-1137,-1135,-1130,-1130,-1118,-1110,-1075,-1105,-1086,-29977,-29978,-12833,-6207,-6207,-5306]} 1. d4 {[%emt 0:00:04]} f5 {[%emt 0:00:02]} 2. g3 {[%emt 0:00:42]} Nf6 {[%emt 0:00:02]} 3. Bg2 {[%emt 0:00:02]} g6 {[%emt 0:00:01]} 4. c4 {[%emt 0:01:44]} Bg7 {[%emt 0:00:02]} 5. Nc3 {[%emt 0:00:02]} O-O {[%emt 0:00:02]} 6. Nf3 {[%emt 0:00:30]} d6 {[%emt 0:00:02]} 7. O-O {[%emt 0:00:05]} c6 {[%emt 0:00:01]} 8. b3 {[%emt 0:00:08]} Qc7 {[%emt 0:00:12] 8...Qa5 is setting a new trend.} 9. Qc2 {[%emt 0:00:22]} e5 {[%emt 0:00:15]} 10. dxe5 {[%emt 0:00:02] A88: Dutch Defence: Leningrad System: 5 Nf3 0-0 6 0-0 d6 7 Nc3 c6.} dxe5 {[%emt 0:00:01]} 11. Ba3 {[%emt 0:00:05]} Re8 {[%emt 0:01:23]} 12. Rad1 {[%emt 0:01:29] Threatening Bd6. White is slightly better.} e4 {[%emt 0:00:29]} 13. Bd6 {[%emt 0:00:10]} Qa5 {[%emt 0:00:41] [#]} 14. Ne5 $146 {[%emt 0:00:41]} ({Predecessor:} 14. b4 Qa6 15. b5 Qa5 16. Nd4 Bd7 17. Nb3 Qd8 18. a4 Be6 19. Nc5 Qc8 20. f3 exf3 21. exf3 Bxc4 {0-1 Schunk,T (2162)-Leow,L (2419) WchT Seniors 50 2018 (5.6)}) 14... Nbd7 {[%emt 0:01:19]} (14... Rxe5 $2 15. b4 Qd8 16. Bxe5 $18) ({Better is} 14... Na6 $17 15. a3 Re6) 15. b4 {[%emt 0:00:55]} Qd8 {[%emt 0:00:07]} (15... Qa6 {looks sharper.} 16. b5 Qa5 17. Nxd7 Nxd7 18. bxc6 bxc6 19. Na4 Ne5) 16. Nxd7 {[%emt 0:03:40]} Qxd7 {[%emt 0:01:01]} 17. f3 {[%emt 0:00:35][%cal Rf3e4]} exf3 {[%emt 0:00:05]} 18. exf3 {[%emt 0:00:14]} Qf7 {[%emt 0:00:03]} 19. c5 {[%emt 0:00:36]} Be6 {[%emt 0:00:52]} 20. b5 {[%emt 0:00:56]} cxb5 {[%emt 0:00:47]} (20... Bc4 $15 21. bxc6 bxc6) 21. Nxb5 $11 {[%emt 0:00:08]} Bc4 {[%emt 0:00:03]} 22. Nc7 {[%emt 0:00:07] Threatens to win with Rfe1.} Re2 {[%emt 0:00:12] Inhibits Rfe1.} 23. Qxe2 {[%emt 0:01:51][%mdl 8192] Now White is beyond hope.} (23. Qb1 $11 {and White is okay.} Rd8 24. Qxb7) 23... Bxe2 $19 {[%emt 0:00:02]} 24. Nxa8 {[%emt 0:00:01]} Nd5 {[%emt 0:00:21][%cal Bf6d5,Bd5e3,Be3g2][%mdl 32]} 25. f4 {[%emt 0:01:09]} Bxd1 {[%emt 0:00:32]} 26. Rxd1 {[%emt 0:00:05]} Ne3 {[%emt 0:00:01][%csl LRa2,LRd1][%mdl 64] Discovered Attack} 27. Nc7 {[%emt 0:00:25]} Nxg2 {[%emt 0:00:20]} ({Weaker is} 27... Nxd1 28. Bd5 $17) 28. Kxg2 {[%emt 0:00:08]} Qxa2+ {[%emt 0:00:02]} 29. Kh3 {[%emt 0:00:02]} Qe2 {[%emt 0:00:02]} 30. Rb1 {[%emt 0:00:12] [#]} g5 $1 {[%emt 0:00:37]} 31. fxg5 {[%emt 0:00:05]} Qg4+ {[%emt 0:00:02]} 32. Kg2 {[%emt 0:00:01]} Qe4+ {[%emt 0:00:01] Weighted Error Value: White=1.10/Black=0.08 (flawless)} 0-1

[Event "Rapid Shavuot-A 2023"]
[Site "Ramat Gan"]
[Date "2023.05.25"]
[Round "4.2"]
[White "Zemach, Roee"]
[Black "Zanan, Evgeny"]
[Result "1/2-1/2"]
[ECO "C07"]
[WhiteElo "2261"]
[BlackElo "2485"]
[Annotator "TA"]
[PlyCount "64"]
[EventDate "2023.05.19"]
[EventType "swiss"]
[EventCountry "ISR"]
[SourceTitle "playchess.com"]
[Source "ChessBase"]
[SourceQuality "1"]
[TimeControl "900+5"]

{[%evp 23,64,20,13,11,34,17,20,9,5,2,7,0,29,7,14,14,31,16,17,19,22,21,25,25,36,0,0,0,0,0,27,0,71,40,47,25,32,0,58,0,49,0,34]} 1. e4 {[%emt 0:00:04]} e6 {[%emt 0:00:30]} 2. d4 {[%emt 0:00:03]} d5 {[%emt 0:00:01]} 3. Nd2 {[%emt 0:00:04]} c5 {[%emt 0:00:01]} 4. Ngf3 {[%emt 0:00:04]} cxd4 {[%emt 0:00:02]} 5. exd5 {[%emt 0:00:03]} Qxd5 {[%emt 0:00:01]} 6. Bc4 {[%emt 0:00:03]} Qd6 {[%emt 0:00:03]} 7. O-O {[%emt 0:00:10]} Nf6 {[%emt 0:00:02]} 8. Nb3 {[%emt 0:00:12]} Nc6 {[%emt 0:00:01]} 9. Nbxd4 {[%emt 0:00:15]} Nxd4 {[%emt 0:00:02]} 10. Nxd4 {[%emt 0:00:03]} Be7 {[%emt 0:00:01]} 11. c3 {[%emt 0:00:41]} O-O {[%emt 0:00:15]} 12. Qf3 {[%emt 0:00:19]} Qc7 {[%emt 0:00:42]} 13. Bb3 {[%emt 0:00:10] C07: French Tarrasch: 3...c5, 4 Ngf3 and 4 exd5 Qxd5.} a5 {[%emt 0:00:23]} 14. a4 {[%emt 0:00:18]} Bd7 {[%emt 0:00:17]} 15. h3 {[%emt 0:00:52] [#]} Rac8 $146 {[%emt 0:00:44]} ({Predecessor:} 15... Bc6 16. Nxc6 Qxc6 17. Qe2 Rfd8 18. Bc2 Rd5 19. Bf4 Bd6 20. Bxd6 Rxd6 21. Rfd1 Rad8 22. Rxd6 Rxd6 23. Rd1 b6 24. Qe5 Rxd1+ 25. Bxd1 Nd7 26. Qd4 e5 27. Qh4 Nf6 {½-½ Zelcic,R (2540)-Martinovic,S (2542) CRO-ch Rijeka 2021 (3)}) 16. Re1 {[%emt 0:00:25]} Qb6 {[%emt 0:03:19]} 17. Bc2 {[%emt 0:00:18]} Rfe8 {[%emt 0:00:07]} 18. Re2 {[%emt 0:00:26]} Bc5 {[%emt 0:04:25]} 19. Nb3 {[%emt 0:00:18]} Bc6 {[%emt 0:00:01]} 20. Qg3 {[%emt 0:00:16]} Ne4 {[%emt 0:00:37][%mdl 64] [#] Deflection} 21. Qh4 {[%emt 0:04:02]} Be7 {[%emt 0:01:03]} 22. Qh5 {[%emt 0:00:05] Some like it hot} f5 {[%emt 0:00:07] Strongly threatening ...Ng3.} 23. Be3 {[%emt 0:00:33]} Qc7 {[%emt 0:01:09]} 24. Nd4 {[%emt 0:00:34] [#] Bb3 is the strong threat.} g6 {[%emt 0:00:29]} 25. Qh6 {[%emt 0:00:03]} Bf8 {[%emt 0:00:02]} 26. Qh4 {[%emt 0:00:02]} Bd5 {[%emt 0:00:13]} (26... Be7 $5 {[%cal Re7h4]} 27. Qh6 Bf8 $11) 27. Rd1 {[%emt 0:00:33]} Qf7 {[%emt 0:00:58]} (27... Be7 $11 {remains equal.} 28. Qh6 Bf8) 28. Nf3 {[%emt 0:00:40]} (28. f3 $5 {[%cal Rf3e4]} Nc5 29. Qg3 $14) 28... Be7 {[%emt 0:00:17]} 29. Qh6 {[%emt 0:00:18]} Bf8 {[%emt 0:00:13]} 30. Qh4 {[%emt 0:00:13]} Be7 $1 {[%emt 0:00:04]} 31. Qh6 {[%emt 0:00:01]} Bf8 {[%emt 0:00:18]} 32. Qh4 {[%emt 0:00:03]} Be7 $1 {[%emt 0:00:01] Weighted Error Value: White=0.16 (very precise) /Black=0.09 (flawless)} 1/2-1/2

[Event "Rapid Shavuot-A 2023"]
[Site "Ramat Gan"]
[Date "2023.05.25"]
[Round "4.3"]
[White "Veinberg, Nimrod"]
[Black "Zemach, Nadav"]
[Result "1-0"]
[ECO "D46"]
[WhiteElo "2410"]
[BlackElo "2383"]
[Annotator "TA"]
[PlyCount "119"]
[EventDate "2023.05.19"]
[EventType "swiss"]
[EventCountry "ISR"]
[SourceTitle "playchess.com"]
[Source "ChessBase"]
[SourceQuality "1"]
[TimeControl "900+5"]

{[%evp 14,119,25,18,48,4,14,4,90,72,92,32,27,30,41,35,39,34,38,0,0,0,0,-10,0,0,0,0,8,0,0,0,18,0,61,37,27,0,0,-246,0,0,0,0,564,566,593,595,689,493,597,592,725,723,824,742,714,703,656,657,881,611,684,684,701,678,830,819,934,785,962,962,1014,986,2122,2060,1354,1171,2339,2137,2464,2382,29987,1160,29988,3984,29985,3191,29986,29987,29992,29989,29992,0,29992,0,2323,2039,29989,29990,29990,29991,29993,29994,29994,29995,29995,29996]} 1. d4 {[%emt 0:00:00]} d5 {[%emt 0:00:01]} 2. c4 {[%emt 0:00:01]} c6 {[%emt 0:00:01]} 3. Nf3 {[%emt 0:00:13]} Nf6 {[%emt 0:00:01]} 4. e3 {[%emt 0:00:05]} e6 {[%emt 0:00:02]} 5. Bd3 {[%emt 0:00:28]} Nbd7 {[%emt 0:00:07]} 6. O-O {[%emt 0:00:07]} Bd6 {[%emt 0:00:12]} 7. Nc3 {[%emt 0:00:48]} dxc4 {[%emt 0:00:03]} 8. Bxc4 {[%emt 0:00:01]} b5 {[%emt 0:00:02] D46: Semi-Slav: 5 e3 Nbd7 6 Bd3, Black avoids the Meran.} 9. Be2 {[%emt 0:00:33] 9.Bb3 is becoming the main line.} O-O {[%emt 0:01:44]} 10. e4 {[%emt 0:00:25] Threatens to win with e5.} Be7 {[%emt 0:01:30]} (10... e5 $1 $11) 11. a3 {[%emt 0:03:29]} Bb7 {[%emt 0:00:16] [#]} 12. b4 $146 {[%emt 0:00:19]} ({Better is} 12. e5 $1 $16 {[%cal Re5f6]} Nd5 13. Nxd5 exd5 14. Bd3) ({Predecessor:} 12. d5 exd5 13. exd5 Nxd5 14. Nxd5 cxd5 15. Bxb5 Nf6 16. Be3 Rc8 17. Nd4 Ne4 18. Rc1 Rxc1 19. Qxc1 {1-0 Trussevich,S (1812)-Majcen,Z (1829) Ljubljana-chT 71st 2018 (8.2)}) 12... a5 $14 {[%emt 0:00:35]} 13. Rb1 {[%emt 0:00:02]} Nb6 {[%emt 0:00:51]} 14. Qb3 {[%emt 0:00:02]} axb4 {[%emt 0:00:16]} 15. axb4 {[%emt 0:00:01]} Na4 {[%emt 0:00:05]} 16. e5 {[%emt 0:01:28]} (16. Bd3 $14) 16... Nxc3 $11 {[%emt 0:00:05]} 17. Qxc3 {[%emt 0:00:01]} Nd5 {[%emt 0:00:01]} 18. Qe1 {[%emt 0:00:01]} Ra4 {[%emt 0:02:05][%cal Ra4b4]} 19. Bd2 {[%emt 0:00:01]} Ra3 {[%emt 0:00:49]} 20. Bd1 {[%emt 0:00:13]} g6 {[%emt 0:02:23]} 21. Bc2 {[%emt 0:00:38]} Qd7 {[%emt 0:00:44]} 22. h4 {[%emt 0:02:22][%cal Bh2h4,Bh4h5][%mdl 32]} Rfa8 {[%emt 0:00:48]} 23. h5 {[%emt 0:00:09]} Ra2 {[%emt 0:00:21]} (23... Qd8 $1 $11) 24. Qd1 {[%emt 0:01:12]} (24. Bb3 $5) 24... R2a3 {[%emt 0:00:53]} 25. Rb2 {[%emt 0:00:34]} Qd8 {[%emt 0:01:02]} ({But not} 25... gxh5 26. Ng5 f5 27. exf6 Nxf6 28. Bb3 $16) 26. Qb1 $2 {[%emt 0:00:45] [#]} (26. Qc1 $11) 26... Qf8 $2 {[%emt 0:00:09]} ({Inferior is} 26... gxh5 27. Bxh7+ Kh8 28. Be4 $11) (26... Rxf3 $1 $19 27. hxg6 (27. gxf3 $2 {too greedy.} Bg5 $19) 27... Rfa3 28. gxf7+ Kxf7 29. Bxh7 Ke8) 27. Re1 {[%emt 0:00:41]} Nc3 {[%emt 0:00:45]} 28. Qc1 {[%emt 0:00:05]} Ne2+ $2 {[%emt 0:00:10][%mdl 8192] White stays focused until the end.} 29. Rxe2 $18 {[%emt 0:00:04]} Ra1 {[%emt 0:00:02]} 30. Rb1 {[%emt 0:00:09]} R1a2 {[%emt 0:00:05]} 31. Bc3 {[%emt 0:00:22]} R8a3 {[%emt 0:00:10]} 32. Bd3 {[%emt 0:00:11]} c5 {[%emt 0:00:32]} 33. bxc5 {[%emt 0:00:21]} Qa8 {[%emt 0:00:22]} 34. Rxa2 {[%emt 0:00:18]} Rxa2 {[%emt 0:00:02]} 35. Ne1 {[%emt 0:00:25]} Bh4 {[%emt 0:00:06]} 36. Bb2 {[%emt 0:00:04]} b4 {[%emt 0:00:14]} 37. Ra1 {[%emt 0:00:04]} b3 {[%emt 0:00:01]} 38. Bc4 {[%emt 0:00:13]} Rxa1 {[%emt 0:00:29]} 39. Qxa1 {[%emt 0:00:06]} Qd8 {[%emt 0:00:01]} 40. Bxb3 {[%emt 0:00:46]} Qg5 {[%emt 0:00:04]} 41. Qc1 {[%emt 0:00:06]} Qf5 {[%emt 0:00:10]} 42. g3 {[%emt 0:00:20]} Bxg3 {[%emt 0:00:09]} 43. fxg3 {[%emt 0:00:08]} Qe4 {[%emt 0:00:05] [#]} 44. d5 $1 {[%emt 0:00:03]} exd5 {[%emt 0:00:02]} (44... Bc8 45. dxe6) 45. c6 {[%emt 0:00:03]} Bc8 {[%emt 0:00:00]} 46. Bc2 {[%emt 0:00:08]} Qe2 {[%emt 0:00:11]} 47. Bd3 {[%emt 0:00:01]} Qxh5 {[%emt 0:00:03]} 48. c7 {[%emt 0:00:08]} (48. e6 $142 fxe6 49. Qf4 e5 50. Qf6 Qh6 51. Qxe5 Kf7 52. Nf3 Bg4 53. c7) 48... Qh3 {[%emt 0:00:03]} 49. Qf4 {[%emt 0:00:04]} (49. Qg5 $142 Qe6 50. Qd8+ Kg7 51. Ba3 h6 52. Be7 Qxe7 53. Qxe7 Bh3 54. Qf6+ Kg8 55. Bxg6 {[%mdl 64] Promotion}) 49... d4 {[%emt 0:00:03]} 50. Qf3 {[%emt 0:00:13]} (50. e6 $142 Qxe6 51. Nc2 Kg7 52. Qxd4+ f6 53. Qd8 Kh6 54. Bxf6 Qg4 55. Be5) 50... Qd7 {[%emt 0:00:10]} 51. Qf6 {[%emt 0:00:10]} Qh3 {[%emt 0:00:05]} 52. Qd8+ {[%emt 0:00:03]} Kg7 {[%emt 0:00:01]} 53. Qf6+ {[%emt 0:00:01]} Kg8 {[%emt 0:00:03]} 54. Qf3 {[%emt 0:00:03] Dodges Bb7} (54. Bc4 $142 Qd7 55. Bc1 d3 56. Bh6 Qd4+ 57. Kh2 Qb2+ 58. Ng2 Qxg2+ 59. Kxg2 Bh3+ 60. Kxh3 g5 61. c8=Q#) 54... Qd7 {[%emt 0:00:02] [#]} 55. e6 $1 {[%emt 0:00:02]} fxe6 {[%emt 0:00:02]} (55... Qxe6 56. Ng2) 56. Qf6 {[%emt 0:00:02] White mates.} Qxc7 {[%emt 0:00:05]} 57. Bxd4 {[%emt 0:00:04]} Qxg3+ {[%emt 0:00:06]} 58. Ng2 {[%emt 0:00:00][%csl Gd4][%cal Rf6g7]} Qc7 {[%emt 0:00:17]} 59. Qh8+ {[%emt 0:00:03]} Kf7 {[%emt 0:00:00]} 60. Qxh7+ {[%emt 0:00:04] Artfully played by Veinberg.   Weighted Error Value: White=0.35/Black=0.54} 1-0

[Event "Rapid Shavuot-A 2023"]
[Site "Ramat Gan"]
[Date "2023.05.25"]
[Round "4.4"]
[White "Bronstein, Or"]
[Black "Poleg, Dan"]
[Result "1/2-1/2"]
[ECO "A13"]
[WhiteElo "2463"]
[BlackElo "2193"]
[Annotator "TA"]
[PlyCount "108"]
[EventDate "2023.05.19"]
[EventType "swiss"]
[EventCountry "ISR"]
[SourceTitle "playchess.com"]
[Source "ChessBase"]
[SourceQuality "1"]
[TimeControl "900+5"]

{[%evp 9,108,55,55,54,64,43,64,58,85,82,122,88,94,96,163,83,77,77,93,77,131,131,124,125,189,213,333,170,343,341,337,66,147,0,0,0,0,0,67,87,73,85,91,0,29,15,15,8,68,20,26,21,29,26,81,0,81,-73,-70,-70,-58,-58,-44,-133,-127,-133,-128,-128,-57,-52,-15,-16,-16,-20,0,-16,-10,-16,-10,-4,0,-14,-12,-12,0,0,0,-6,0,0,0,0,0,0,0,0,0,0,0,0,0]} 1. c4 {[%emt 0:00:04]} e6 {[%emt 0:00:04]} 2. Nc3 {[%emt 0:00:21]} Bb4 {[%emt 0:00:06]} 3. e4 {[%emt 0:00:13]} c5 {[%emt 0:01:03]} 4. a3 {[%emt 0:00:20]} Bxc3 {[%emt 0:00:30]} 5. dxc3 {[%emt 0:00:07] [#]} d6 $146 {[%emt 0:00:15]} ({Predecessor:} 5... Nc6 6. Qg4 Qf6 7. h4 Qg6 8. Qe2 a5 9. a4 f6 10. Nh3 Nge7 11. Nf4 Qf7 {0-1 Djuric,S (2517)-Vojinovic,G (2443) YUG Cup Herceg Novi 1999}) 6. Qg4 {[%emt 0:00:37] A13: English Opening: 1...e6.} Kf8 {[%emt 0:00:56]} 7. Bg5 {[%emt 0:00:32] White is more active.} Nf6 {[%emt 0:00:06]} 8. Qh4 {[%emt 0:00:18] White is slightly better.} h6 {[%emt 0:00:15]} 9. O-O-O {[%emt 0:00:05]} e5 {[%emt 0:00:57]} 10. f4 {[%emt 0:02:19] fxe5 is the strong threat.} Nbd7 {[%emt 0:01:02]} 11. Rxd6 {[%emt 0:00:32]} Qc7 {[%emt 0:00:36]} (11... Qe7 $16 12. Rd1 exf4) 12. fxe5 {[%emt 0:05:45]} (12. Rxf6 $6 gxf6 13. Bxf6 (13. Bxh6+ Ke8 $11) 13... Nxf6 14. Qxf6 Rg8 $14) (12. Rd1 $18) 12... Nxe5 $16 {[%emt 0:00:33]} 13. Rxf6 {[%emt 0:00:04]} (13. Bxf6 Qxd6 14. Bxe5 Qxe5 $17) 13... gxf6 {[%emt 0:00:02]} 14. Bxf6 {[%emt 0:00:02]} Ng6 {[%emt 0:00:03]} (14... Ng4 $142 15. e5 (15. Bxh8 $2 Qf4+ 16. Kc2 Ne3+ {[%mdl 64] Discovered Attack, Double Attack} 17. Kd3 Qxh4 $19) 15... Nxf6 16. Qxf6 Rg8) 15. Qf2 $1 {[%emt 0:00:07] And now e5 would win.} Rg8 {[%emt 0:00:08]} 16. g3 {[%emt 0:01:03] Black must now prevent Be2.} Bd7 {[%emt 0:00:13]} (16... Qd6 $16) 17. Nf3 {[%emt 0:00:12]} Re8 {[%emt 0:00:07]} (17... Bg4 {was called for.} 18. Bg2 Re8) 18. e5 {[%emt 0:00:19]} (18. Qe3 $142 Re6 19. e5) 18... Bg4 $2 {[%emt 0:00:32]} (18... Nxe5 19. Nxe5 (19. Bxe5 Rxe5 20. Nxe5 {[%mdl 64] Discovered Attack} Qxe5 $16) 19... Rxe5 20. Bxe5 Qxe5) 19. Qe3 {[%emt 0:00:50]} Re6 {[%emt 0:00:29]} 20. Qxh6+ $2 {[%emt 0:00:56]} (20. Bh3 $1 $18 Bxf3 21. Re1 Rxe5 22. Qxh6+ (22. Bxe5 Qxe5 23. Qxe5 Nxe5 $16) 22... Ke8 23. Bxe5) 20... Ke8 $14 {[%emt 0:00:01]} 21. Bg2 {[%emt 0:00:47]} (21. Qh7 Rf8 22. Bh3 Bxf3 $16) (21. Ng5 $1 $16 {[%cal Rg5e6]} Qc6 22. Qh7) 21... Bxf3 $11 {[%emt 0:01:11][%mdl 64] Remove Defender} 22. Bxf3 {[%emt 0:00:01][%cal Bg2f3,Bf3d1,Bd1a4][%mdl 32]} Nxe5 {[%emt 0:00:01]} 23. Bd1 {[%emt 0:00:12] Threatens to win with Ba4+. This pair of bishops is nice.} Nd7 {[%emt 0:00:57]} ({Black should play} 23... Nd3+ $11 24. Kb1 Nxb2) 24. Ba4 $14 {[%emt 0:00:11] aiming for Rd1.} a6 {[%emt 0:01:14][%cal Ob7b5]} 25. Qh7 {[%emt 0:00:46][%cal Rh7g8]} Kf8 {[%emt 0:00:06]} 26. Qh6+ {[%emt 0:00:13]} (26. Bh4 $1 $16) 26... Ke8 $11 {[%emt 0:00:01][%cal Ob7b5]} 27. Rd1 {[%emt 0:00:08]} b5 $1 {[%emt 0:00:13]} 28. cxb5 {[%emt 0:00:01]} Rxf6 {[%emt 0:00:02]} (28... Qa5 $11 29. Bb3 Rxf6) 29. b6 {[%emt 0:00:14]} ({Don't play} 29. Qxf6 Nxf6 30. b6+ (30. bxa6+ $2 {loses.} Ke7 $19) 30... Qd7 $15) (29. Rxd7 $1 $14 {might be stronger.} Rxh6 30. Rxc7) 29... Qxb6 {[%emt 0:02:02]} (29... Rxh6 $2 30. bxc7 Ke7 31. Rxd7+ Kf6 32. Rd8 $18) 30. Bxd7+ {[%emt 0:00:05]} Ke7 {[%emt 0:00:08]} 31. Qe3+ {[%emt 0:00:03]} Kf8 $1 {[%emt 0:00:05]} 32. g4 {[%emt 0:00:10]} ({White should try} 32. c4 $1 $16) 32... Qc7 {[%emt 0:00:24] [#] Black is weak on the light squares} (32... c4 $1 $11 {keeps the balance.} 33. Qxb6 (33. Qe4 Rf2 $17) 33... Rxb6) 33. g5 $2 {[%emt 0:00:04] Chess con chili.} (33. Bf5 $1 $16 {keeps the pressure on.}) 33... Qf4 $17 {[%emt 0:00:05]} 34. Qxf4 {[%emt 0:00:06]} Rxf4 $15 {[%emt 0:00:01][%mdl 4096] Endgame KRR-KRB} 35. Rd5 {[%emt 0:00:01]} c4 {[%emt 0:00:25]} 36. Kd2 {[%emt 0:00:06]} ({Better is} 36. Bc8 $15) 36... Rf2+ $17 {[%emt 0:00:19]} 37. Ke3 {[%emt 0:00:00]} Rxh2 {[%emt 0:00:02]} 38. Bc8 {[%emt 0:00:11] [#]} Rxb2 {[%emt 0:00:12]} (38... Rg6 $1 $17 39. Ra5 Rd6 40. Bxa6 Rd3+ 41. Ke4 Re2+ 42. Kf4 Rxb2 43. Bxc4 Rxc3) 39. Bxa6 {[%emt 0:00:02]} Rb3 {[%emt 0:00:03]} 40. Kd4 {[%emt 0:00:01] The position is equal.} Rxa3 {[%emt 0:00:03]} 41. Bxc4 {[%emt 0:00:01]} Ra7 {[%emt 0:00:21]} 42. Rf5 {[%emt 0:00:05]} Rg6 {[%emt 0:00:20]} 43. Bd5 {[%emt 0:00:04]} Rg7 {[%emt 0:00:57]} 44. c4 {[%emt 0:00:05]} Ke7 {[%emt 0:00:04]} 45. Kc5 {[%emt 0:00:07]} Ra1 {[%emt 0:00:01]} 46. Re5+ {[%emt 0:00:03]} Kd7 {[%emt 0:00:02]} 47. Bc6+ {[%emt 0:00:01]} Kc7 {[%emt 0:00:13]} 48. Bb5 {[%emt 0:00:19]} Rg1 {[%emt 0:00:06]} 49. Re7+ {[%emt 0:00:01]} Kd8 {[%emt 0:00:08]} 50. Re8+ {[%emt 0:00:01]} Kc7 {[%emt 0:00:01]} 51. Re7+ {[%emt 0:00:01]} Kd8 {[%emt 0:00:01]} 52. Re8+ {[%emt 0:00:21]} Kc7 {[%emt 0:00:01]} 53. Re7+ {[%emt 0:00:02]} Kd8 {[%emt 0:00:01]} 54. Re8+ {[%emt 0:00:08]} Kc7 {[%emt 0:01:47] Blacks defense is rewarded with a draw.   Weighted Error Value: White=0.28 (precise) /Black=0.26 (precise)} 1/2-1/2

[Event "Rapid Shavuot-A 2023"]
[Site "Ramat Gan"]
[Date "2023.05.25"]
[Round "4.5"]
[White "Sherman, Reem"]
[Black "Levin, Guy"]
[Result "1/2-1/2"]
[ECO "B13"]
[WhiteElo "2306"]
[BlackElo "2424"]
[Annotator "TA"]
[PlyCount "105"]
[EventDate "2023.05.19"]
[EventType "swiss"]
[EventCountry "ISR"]
[SourceTitle "playchess.com"]
[Source "ChessBase"]
[SourceQuality "1"]
[TimeControl "900+5"]

{[%evp 9,105,-10,-8,-21,-17,-17,25,18,18,13,25,22,22,12,27,-33,-41,-61,14,16,1,-80,-39,-50,-51,-52,-48,-46,-16,-48,-22,-37,-13,-22,-21,-26,-11,-22,0,0,20,12,22,0,30,12,8,12,62,12,45,43,35,33,43,0,72,40,40,40,95,88,101,79,95,94,174,193,297,267,460,399,512,509,754,737,831,812,789,789,749,442,438,432,430,429,410,426,481,260,260,259,255,246,232,187,216,0]} 1. e4 {[%emt 0:00:07]} c6 {[%emt 0:00:05]} 2. d4 {[%emt 0:00:10]} d5 {[%emt 0:00:01]} 3. exd5 {[%emt 0:00:02]} cxd5 {[%emt 0:00:01]} 4. Nc3 {[%emt 0:00:01]} Nc6 {[%emt 0:00:19]} 5. Bf4 {[%emt 0:00:02]} Bf5 {[%emt 0:00:03]} 6. Nf3 {[%emt 0:00:06] B13: Caro-Kann: Exchange Variation and Panov-Botvinnik Attack.} e6 {[%emt 0:00:01]} 7. Bd3 {[%emt 0:00:18] [#]} g6 $146 {[%emt 0:00:39]} ({Predecessor:} 7... Bg4 8. Be2 Nf6 9. O-O Bd6 10. Bxd6 Qxd6 11. Nb5 Qe7 12. c3 Bxf3 13. Bxf3 O-O {0-1 Beukema,J (2368)-Zwirs,N (2479) BEL-chT 2223 2022 (9.2)}) 8. Bxf5 {[%emt 0:00:18] White has an edge.} gxf5 {[%emt 0:00:02]} 9. Ne5 {[%emt 0:00:03]} Nf6 {[%emt 0:00:37][%cal Bg8f6,Bf6h5,Bh5f4][%mdl 32]} 10. Nxc6 {[%emt 0:01:49]} bxc6 {[%emt 0:00:01]} 11. Qe2 {[%emt 0:00:57]} Rg8 {[%emt 0:00:14]} 12. f3 {[%emt 0:01:24]} (12. g3 $11) 12... Nh5 $15 {[%emt 0:01:07]} 13. Be3 {[%emt 0:00:58]} Bd6 {[%emt 0:03:14]} (13... Rb8 $15 14. O-O-O Bb4) 14. O-O-O $11 {[%emt 0:00:30]} Nf4 {[%emt 0:00:09]} 15. Qa6 {[%emt 0:00:42]} (15. Bxf4 $11 {remains equal.} Bxf4+ 16. Kb1) 15... Qb6 {[%emt 0:01:44]} (15... Nxg2 {keeps more tension.} 16. Qxc6+ Ke7 17. Bd2 Qb6) 16. Qxb6 axb6 {[%emt 0:00:01]} 17. g3 {[%emt 0:00:27]} Nh5 {[%emt 0:00:23]} 18. Bd2 {[%emt 0:00:10]} b5 {[%emt 0:00:19]} 19. Kb1 {[%emt 0:00:07]} Kd7 {[%emt 0:00:09]} 20. Rhf1 {[%emt 0:00:42]} Rg6 {[%emt 0:00:16]} 21. Ne2 {[%emt 0:00:15]} Nf6 {[%emt 0:00:32]} 22. Bf4 {[%emt 0:00:02]} Be7 {[%emt 0:00:17]} 23. Nc1 {[%emt 0:00:05]} Nh5 {[%emt 0:00:09]} 24. Bd2 {[%emt 0:00:21]} Rag8 {[%emt 0:00:12]} 25. Nd3 {[%emt 0:00:07]} Bd6 {[%emt 0:00:02]} 26. Rde1 {[%emt 0:00:21]} f6 {[%emt 0:01:18]} 27. Bb4 {[%emt 0:00:39]} Bxb4 {[%emt 0:00:35]} 28. Nxb4 {[%emt 0:00:02]} Kd6 {[%emt 0:00:22]} (28... Ng7 $11) 29. Nd3 {[%emt 0:00:24]} (29. f4 $14) 29... Re8 {[%emt 0:00:01]} 30. f4 {[%emt 0:00:18]} Ng7 {[%emt 0:00:02]} 31. Re3 {[%emt 0:00:05] Black is weak on the dark squares} h5 {[%emt 0:00:06][%cal Oh5h4]} 32. Rfe1 {[%emt 0:00:25]} Rh6 {[%emt 0:00:11]} (32... h4 $11) 33. Nc5 {[%emt 0:00:22]} h4 {[%emt 0:00:03]} 34. b4 {[%emt 0:00:39]} hxg3 {[%emt 0:00:13]} (34... Rhh8 $14) 35. hxg3 $16 {[%emt 0:00:10]} ({But not} 35. Rxg3 $6 Re7 $11) 35... Re7 {[%emt 0:00:20]} 36. Kb2 {[%emt 0:00:11] White is more active.} Rh8 {[%emt 0:00:31]} 37. Ra3 {[%emt 0:00:25]} Rb8 {[%emt 0:00:39] [#]} (37... e5 $16) 38. Rh1 $1 $18 {[%emt 0:00:11]} Rg8 {[%emt 0:00:14]} (38... Rf8 $142 39. Ra6 Rb8) 39. Ra6 {[%emt 0:00:37]} Ne8 $2 {[%emt 0:01:08]} (39... Rb8 40. Rh7 Rf7) 40. Ra8 {[%emt 0:00:41]} Kc7 {[%emt 0:00:30]} 41. Re1 {[%emt 0:00:56] Black must now prevent Ra7+.} Kd6 {[%emt 0:00:11]} 42. Re3 {[%emt 0:00:08]} e5 {[%emt 0:00:27]} 43. fxe5+ {[%emt 0:00:12]} fxe5 {[%emt 0:00:01]} 44. dxe5+ {[%emt 0:00:40]} Rxe5 {[%emt 0:00:01]} 45. Nb7+ {[%emt 0:00:46]} Ke6 {[%emt 0:00:01]} 46. Nd8+ {[%emt 0:00:13]} Kf6 {[%emt 0:00:01]} 47. Rxe5 {[%emt 0:00:01]} Kxe5 {[%emt 0:00:28]} 48. Nxc6+ {[%emt 0:00:01] KRN-KRN} Kf6 49. Nd4 {[%emt 0:00:06]} (49. Rd8 $142) 49... Rg4 {[%emt 0:00:01]} 50. c3 {[%emt 0:00:13]} ({Worse is} 50. Nxb5 Rxb4+ 51. Kc1 Rxb5 $14) 50... Nd6 {[%emt 0:00:02]} 51. Ra6 {[%emt 0:00:22][%csl LRb5,LRd6]} Ke5 {[%emt 0:00:21]} 52. Nf3+ {[%emt 0:00:07]} Ke6 {[%emt 0:00:01] [#]} 53. Nd4+ $2 {[%emt 0:00:04] Weighted Error Value: White=0.26 (precise) /Black=0.33} (53. Kb3 $1 $18) 1/2-1/2